fUSD/lending_fUSD_20240329
["ID","MTS","AMOUNT","RATE_DAILY","PERIOD"]
[320926972,1711715455987,-749.63,0.00050684,120]
[320926973,1711715455996,-500.0,0.00050684,120]
[320926974,1711715456005,-970.01,0.00050684,120]
[320926975,1711715456014,-500.0,0.00050684,120]
[320926976,1711715456025,-500.0,0.00050684,120]
[320926977,1711715456034,-989.16,0.00050684,120]
[320926978,1711715456043,-1295.72,0.00050684,120]
[320926979,1711715456052,-1210.99,0.00050684,120]
[320926980,1711715456061,-1766.07,0.00050684,120]
[320926981,1711715456070,-803.36,0.00050684,120]
[320926982,1711715456080,-500.0,0.00050684,120]
[320926983,1711715456089,-500.0,0.00050684,120]
[320926984,1711715456099,-500.0,0.00050684,120]
[320926985,1711715456107,-607.41,0.00050684,120]
[320926986,1711715456116,-1040.75,0.00050684,120]
[320926987,1711715456125,-500.0,0.00050684,120]
[320926988,1711715456135,-591.93,0.00050684,120]
[320926989,1711715456143,-500.0,0.00050684,120]
[320926990,1711715456153,-500.0,0.00050684,120]
[320926991,1711715456162,-974.57,0.00050684,120]
[320926992,1711715456171,-500.0,0.00050684,120]
[320926993,1711715456181,-937.75,0.00050684,120]
[320926994,1711715456190,-7631.65,0.00050684,120]
[320926995,1711715456200,-500.0,0.00050684,120]
[320926996,1711715456211,-500.0,0.00050684,120]
[320926997,1711715456220,-547.15,0.00050684,120]
[320926998,1711715456229,-849.68,0.00050684,120]
[320926999,1711715456237,-1598.48,0.00050684,120]
[320927000,1711715456246,-530.07,0.00050684,120]
[320927001,1711715456255,-544.49,0.00050684,120]
[320927002,1711715456264,-500.0,0.00050684,120]
[320927003,1711715456273,-1844.98,0.00050684,120]
[320927004,1711715456282,-521.32,0.00050684,120]
[320927005,1711715456291,-500.0,0.00050684,120]
[320927006,1711715456300,-600.49,0.00050684,120]
[320927007,1711715456310,-520.77934344,0.00050684,30]
[320927008,1711715456319,-725.02,0.00050684,120]
[320927009,1711715456328,-997.33,0.00050684,120]
[320927010,1711715456338,-500.0,0.00050684,120]
[320927011,1711715456346,-532.33,0.00050684,120]
[320927012,1711715456355,-2494.86,0.00050684,120]
[320927013,1711715456365,-500.0,0.00050684,120]
[320927014,1711715456374,-635.78,0.00050684,120]
[320927015,1711715456383,-500.0,0.00050684,120]
[320927016,1711715456392,-500.0,0.00050684,120]
[320927017,1711715456401,-854.79,0.00050684,21]
[320927018,1711715456410,-986.55,0.00050684,120]
[320927019,1711715456419,-2139.57,0.00050684,120]
[320927020,1711715456427,-500.0,0.00050684,120]
[320927021,1711715456436,-947.88,0.00050684,120]
[320927022,1711715456445,-922.26,0.00050684,120]
[320927023,1711715456454,-809.13,0.00050684,120]
[320927024,1711715456465,-385.30662957,0.00050684,120]
[320927025,1711715456474,-555.49,0.00050684,120]
[320927026,1711715456482,-500.0,0.00050684,120]
[320927027,1711715456491,-1496.84,0.00050684,120]
[320927028,1711715456500,-1713.03,0.00050684,120]
[320927029,1711715456509,-714.32,0.00050684,120]
[320927030,1711715456518,-652.78,0.00050684,120]
[320927031,1711715456526,-525.31,0.00050684,120]
[320927032,1711715456535,-599.43,0.00050684,120]
[320927033,1711715456544,-500.0,0.00050684,120]
[320927034,1711715456553,-513.23,0.00050684,120]
[320927035,1711715456562,-500.0,0.00050684,120]
[320927036,1711715456571,-500.0,0.00050684,120]
[320927037,1711715456579,-1171.13,0.00050684,120]
[320927038,1711715456588,-500.0,0.00050684,120]
[320927039,1711715456598,-500.0,0.00050684,120]
[320927040,1711715456606,-500.0,0.00050684,120]
[320927041,1711715456615,-500.0,0.00050684,120]
[320927042,1711715456624,-500.0,0.00050684,120]
[320927043,1711715456633,-594.44,0.00050684,120]
[320927044,1711715456643,-500.0,0.00050684,120]
[320927045,1711715456652,-2019.49,0.00050684,120]
[320927046,1711715456661,-500.0,0.00050684,120]
[320927047,1711715456672,-525.7,0.00050684,120]
[320927048,1711715456681,-556.54,0.00050684,120]
[320927049,1711715456690,-500.0,0.00050684,120]
[320927050,1711715456700,-699.71,0.00050684,120]
[320927051,1711715456709,-500.0,0.00050684,120]
[320927052,1711715456719,-739.52,0.00050684,120]
[320927053,1711715456729,-917.3,0.00050684,120]
[320927054,1711715456738,-1111.26,0.00050684,120]
[320927055,1711715456748,-500.0,0.00050684,120]
[320927056,1711715456757,-150.0,0.00050705,7]
[320927057,1711715456766,-150.0,0.00050777,7]
[320927058,1711715456775,-13373.70903462,0.000508,120]
[320927059,1711715456784,-150.0,0.00050826,7]
[320927060,1711715456794,-150.0,0.00050828,7]
[320927061,1711715456803,-150.0,0.0005083,7]
[320927062,1711715456814,-158.71889232,0.00050881,60]
[320927063,1711715456824,-150.0,0.00050884,7]
[320927064,1711715456833,-150.0,0.00050893,7]
[320927065,1711715456842,-170.69831318,0.000509,120]
[320927066,1711715456851,-170.69831318,0.000509,120]
[320927067,1711715456860,-170.69831318,0.000509,120]
[320927068,1711715456869,-170.69831318,0.000509,120]
[320927069,1711715456879,-170.69831318,0.000509,120]
[320927070,1711715456888,-170.69831318,0.000509,120]
[320927071,1711715456897,-150.0,0.00050913,7]
[320927072,1711715456906,-150.0,0.0005093,7]
[320927073,1711715456915,-500.0,0.00050958,2]
[320927074,1711715456924,-500.0,0.00050958,120]
[320927075,1711715456933,-1672.16,0.00050958,120]
[320927076,1711715456942,-500.0,0.00050958,120]
[320927077,1711715456953,-740.46,0.00050958,120]
[320927078,1711715456965,-500.0,0.00050958,120]
[320927079,1711715456975,-522.88,0.00050958,120]
[320927080,1711715456987,-500.0,0.00050958,120]
[320927081,1711715456997,-500.0,0.00050958,120]
[320927082,1711715457006,-500.0,0.00050958,120]
[320927083,1711715457015,-500.0,0.00050958,120]
[320927084,1711715457025,-500.0,0.00050958,120]
[320927085,1711715457035,-500.0,0.00050958,120]
[320927086,1711715457044,-500.0,0.00050958,120]
[320927087,1711715457054,-500.0,0.00050958,120]
[320927088,1711715457065,-500.0,0.00050958,120]
[320927089,1711715457074,-500.0,0.00050958,120]
[320927090,1711715457083,-500.0,0.00050958,120]
[320927091,1711715457092,-500.0,0.00050958,120]
[320927092,1711715457101,-150.0,0.00050958,120]
[320927093,1711715457110,-500.0,0.00050958,120]
[320927094,1711715457119,-500.0,0.00050958,120]
[320927095,1711715457129,-500.0,0.00050958,120]
[320927096,1711715457138,-500.0,0.00050958,120]
[320927097,1711715457147,-500.0,0.00050958,120]
[320927098,1711715457156,-500.0,0.00050958,120]
[320927099,1711715457165,-500.0,0.00050958,120]
[320927100,1711715457174,-500.0,0.00050958,120]
[320927101,1711715457183,-500.0,0.00050958,120]
[320927102,1711715457192,-525.02,0.00050958,120]
[320927103,1711715457201,-1085.74,0.00050958,120]
[320927104,1711715457210,-500.0,0.00050958,120]
[320927105,1711715457219,-930.68,0.00050958,120]
[320927106,1711715457229,-500.0,0.00050958,120]
[320927107,1711715457244,-1247.64,0.00050958,120]
[320927108,1711715457254,-500.0,0.00050958,120]
[320927109,1711715457263,-637.35,0.00050958,120]
[320927110,1711715457273,-500.0,0.00050958,120]
[320927111,1711715457282,-500.0,0.00050958,120]
[320927112,1711715457292,-2186.22,0.00050958,120]
[320927113,1711715457301,-1025.85,0.00050958,120]
[320927114,1711715457310,-1080.64,0.00050958,120]
[320927115,1711715457319,-2210.32,0.00050958,120]
[320927116,1711715457328,-813.7,0.00050958,120]
[320927117,1711715457337,-500.0,0.00050958,120]
[320927118,1711715457346,-644.49,0.00050958,120]
[320927119,1711715457355,-5519.83,0.00050958,120]
[320927120,1711715457365,-500.0,0.00050958,120]
[320927121,1711715457374,-522.99,0.00050958,120]
[320927122,1711715457383,-500.0,0.00050958,120]
[320927123,1711715457392,-1098.18,0.00050958,120]
[320927124,1711715457402,-744.47,0.00050958,120]
[320927125,1711715457411,-532.08,0.00050958,120]
[320927126,1711715457420,-815.77,0.00050958,120]
[320927127,1711715457430,-1398.69,0.00050958,120]
[320927128,1711715457439,-500.0,0.00050958,120]
[320927129,1711715457448,-500.0,0.00050958,120]
[320927130,1711715457458,-1134.32,0.00050958,120]
[320927131,1711715457467,-500.0,0.00050958,120]
[320927132,1711715457476,-2306.29,0.00050958,120]
[320927133,1711715457486,-500.0,0.00050958,120]
[320927134,1711715457495,-906.41,0.00050958,120]
[320927135,1711715457505,-500.0,0.00050958,120]
[320927136,1711715457514,-2037.34,0.00050958,120]
[320927137,1711715457523,-897.77,0.00050958,120]
[320927138,1711715457532,-831.59,0.00050958,120]
[320927139,1711715457541,-500.0,0.00050958,120]
[320927140,1711715457550,-837.52,0.00050958,120]
[320927141,1711715457559,-1445.92,0.00050958,120]
[320927142,1711715457568,-865.91,0.00050958,120]
[320927143,1711715457576,-500.0,0.00050958,120]
[320927144,1711715457586,-4401.0,0.00050958,120]
[320927145,1711715457595,-618.06,0.00050958,120]
[320927146,1711715457604,-228.41202562,0.00050958,120]
[320927147,1711715457613,-11946.25,0.00050958,120]
[320927148,1711715457622,-553.68,0.00050958,120]
[320927149,1711715457631,-500.0,0.00050958,120]
[320927150,1711715457640,-536.07,0.00050958,120]
[320927151,1711715457650,-749.63,0.00050958,120]
[320927152,1711715457658,-500.0,0.00050958,120]
[320927153,1711715457668,-970.01,0.00050958,120]
[320927154,1711715457677,-500.0,0.00050958,120]
[320927155,1711715457686,-500.0,0.00050958,120]
[320927156,1711715457695,-989.16,0.00050958,120]
[320927157,1711715457704,-1295.72,0.00050958,120]
[320927158,1711715457714,-1210.99,0.00050958,120]
[320927159,1711715457723,-1766.07,0.00050958,120]
[320927160,1711715457732,-803.36,0.00050958,120]
[320927161,1711715457741,-500.0,0.00050958,120]
[320927162,1711715457750,-500.0,0.00050958,120]
[320927163,1711715457759,-500.0,0.00050958,120]
[320927164,1711715457769,-607.41,0.00050958,120]
[320927165,1711715457779,-1040.75,0.00050958,120]
[320927166,1711715457788,-500.0,0.00050958,120]
[320927167,1711715457797,-591.93,0.00050958,120]
[320927168,1711715457807,-500.0,0.00050958,120]
[320927169,1711715457817,-500.0,0.00050958,120]
[320927170,1711715457826,-974.57,0.00050958,120]
[320927171,1711715457836,-500.0,0.00050958,120]
[320927172,1711715457845,-937.75,0.00050958,120]
[320927173,1711715457855,-7631.65,0.00050958,120]
[320927174,1711715457864,-500.0,0.00050958,120]
[320927175,1711715457874,-500.0,0.00050958,120]
[320927176,1711715457883,-547.15,0.00050958,120]
[320927177,1711715457893,-849.68,0.00050958,120]
[320927178,1711715457902,-1598.48,0.00050958,120]
[320927179,1711715457912,-530.07,0.00050958,120]
[320927180,1711715457921,-544.49,0.00050958,120]
[320927181,1711715457932,-500.0,0.00050958,120]
[320927182,1711715457942,-1844.98,0.00050958,120]
[320927183,1711715457952,-521.32,0.00050958,120]
[320927184,1711715457962,-600.49,0.00050958,120]
[320927185,1711715457971,-725.02,0.00050958,120]
[320927186,1711715457982,-997.33,0.00050958,120]
[320927187,1711715457993,-500.0,0.00050958,120]
[320927188,1711715458005,-532.33,0.00050958,120]
[320927189,1711715458015,-2494.86,0.00050958,120]
[320927190,1711715458026,-500.0,0.00050958,120]
[320927191,1711715458036,-635.78,0.00050958,120]
[320927192,1711715458045,-500.0,0.00050958,120]
[320927193,1711715458055,-500.0,0.00050958,120]
[320927194,1711715458065,-854.79,0.00050958,21]
[320927195,1711715458075,-986.55,0.00050958,120]
[320927196,1711715458085,-2139.57,0.00050958,120]
[320927197,1711715458095,-500.0,0.00050958,120]
[320927198,1711715458105,-947.88,0.00050958,120]
[320927199,1711715458115,-922.26,0.00050958,120]
[320927200,1711715458124,-809.13,0.00050958,120]
[320927201,1711715458133,-555.49,0.00050958,120]
[320927202,1711715458143,-500.0,0.00050958,120]
[320927203,1711715458152,-1496.84,0.00050958,120]
[320927204,1711715458162,-1713.03,0.00050958,120]
[320927205,1711715458171,-714.32,0.00050958,120]
[320927206,1711715458181,-652.78,0.00050958,120]
[320927207,1711715458190,-525.31,0.00050958,120]
[320927208,1711715458200,-599.43,0.00050958,120]
[320927209,1711715458211,-500.0,0.00050958,120]
[320927210,1711715458220,-513.23,0.00050958,120]
[320927211,1711715458230,-500.0,0.00050958,120]
[320927212,1711715458239,-500.0,0.00050958,120]
[320927213,1711715458249,-1171.13,0.00050958,120]
[320927214,1711715458259,-500.0,0.00050958,120]
[320927215,1711715458269,-500.0,0.00050958,120]
[320927216,1711715458279,-1412.38,0.00050958,68]
[320927217,1711715458289,-500.0,0.00050958,120]
[320927218,1711715458298,-500.0,0.00050958,120]
[320927219,1711715458307,-500.0,0.00050958,120]
[320927220,1711715458317,-594.44,0.00050958,120]
[320927221,1711715458327,-500.0,0.00050958,120]
[320927222,1711715458336,-2019.49,0.00050958,120]
[320927223,1711715458346,-500.0,0.00050958,120]
[320927224,1711715458355,-525.7,0.00050958,120]
[320927225,1711715458364,-556.54,0.00050958,120]
[320927226,1711715458374,-500.0,0.00050958,120]
[320927227,1711715458383,-699.71,0.00050958,120]
[320927228,1711715458393,-500.0,0.00050958,120]
[320927229,1711715458402,-739.52,0.00050958,120]
[320927230,1711715458412,-917.3,0.00050958,120]
[320927231,1711715458422,-1111.26,0.00050958,120]
[320927232,1711715458431,-500.0,0.00050958,120]
[320927233,1711715458440,-150.0,0.00050964,7]
[320927234,1711715458449,-32936.38961104,0.00051,30]
[320927235,1711715458459,-150.0,0.00051061,7]
[320927236,1711715458468,-301.13045602,0.00051064,90]
[320927237,1711715458477,-152.0,0.00051083,4]
[320927238,1711715458487,-150.0,0.00051086,7]
[320927239,1711715458496,-180.71,0.000511,7]
[320927240,1711715458508,-1017.0,0.000511,7]
[320927241,1711715458517,-150.0,0.00051119,7]
[320927242,1711715458527,-150.0,0.00051137,7]
[320927243,1711715458536,-166.99392,0.00051139,4]
[320927244,1711715458546,-161.10517093,0.00051154,60]
[320927245,1711715458555,-150.0,0.00051168,7]
[320927246,1711715458564,-306.38,0.000512,7]
[320927247,1711715458573,-460.0,0.000512,40]
[320927248,1711715458582,-150.0,0.00051211,7]
[320927249,1711715458591,-150.0,0.00051218,7]
[320927250,1711715458601,-500.0,0.00051232,2]
[320927251,1711715458609,-500.0,0.00051232,120]
[320927252,1711715458618,-1672.16,0.00051232,120]
[320927253,1711715458627,-500.0,0.00051232,120]
[320927254,1711715458636,-740.46,0.00051232,120]
[320927255,1711715458646,-500.0,0.00051232,120]
[320927256,1711715458654,-522.88,0.00051232,120]
[320927257,1711715458664,-500.0,0.00051232,120]
[320927258,1711715458673,-500.0,0.00051232,120]
[320927259,1711715458682,-500.0,0.00051232,120]
[320927260,1711715458691,-500.0,0.00051232,120]
[320927261,1711715458700,-500.0,0.00051232,120]
[320927262,1711715458711,-500.0,0.00051232,120]
[320927263,1711715458721,-449.02240366,0.00051232,120]
[320927264,1711715458730,-500.0,0.00051232,120]
[320927265,1711715458739,-618.8226911,0.00051232,120]
[320927266,1711715458749,-200.3673032,0.00051232,120]
[320927267,1711715458758,-500.0,0.00051232,120]
[320927268,1711715458770,-500.0,0.00051232,120]
[320927269,1711715458781,-150.0,0.00051232,120]
[320927270,1711715458792,-248.36605817,0.00051232,120]
[320927271,1711715458804,-500.0,0.00051232,120]
[320927272,1711715458813,-500.0,0.00051232,120]
[320927273,1711715458824,-500.0,0.00051232,120]
[320927274,1711715458834,-500.0,0.00051232,120]
[320927275,1711715458843,-643.7187126,0.00051232,120]
[320927276,1711715458852,-500.0,0.00051232,120]
[320927277,1711715458862,-500.0,0.00051232,120]
[320927278,1711715458871,-500.0,0.00051232,120]
[320927279,1711715458881,-525.02,0.00051232,120]
[320927280,1711715458890,-1085.74,0.00051232,120]
[320927281,1711715458899,-500.0,0.00051232,120]
[320927282,1711715458909,-930.68,0.00051232,120]
[320927283,1711715458918,-500.0,0.00051232,120]
[320927284,1711715458927,-1247.64,0.00051232,120]
[320927285,1711715458938,-500.0,0.00051232,120]
[320927286,1711715458947,-637.35,0.00051232,120]
[320927287,1711715458957,-500.0,0.00051232,120]
[320927288,1711715458967,-500.0,0.00051232,120]
[320927289,1711715458978,-2186.22,0.00051232,120]
[320927290,1711715458990,-1025.85,0.00051232,120]
[320927291,1711715458999,-1080.64,0.00051232,120]
[320927292,1711715459010,-2210.32,0.00051232,120]
[320927293,1711715459020,-813.7,0.00051232,120]
[320927294,1711715459029,-500.0,0.00051232,120]
[320927295,1711715459040,-644.49,0.00051232,120]
[320927296,1711715459050,-5519.83,0.00051232,120]
[320927297,1711715459060,-500.0,0.00051232,120]
[320927298,1711715459072,-522.99,0.00051232,120]
[320927299,1711715459082,-500.0,0.00051232,120]
[320927300,1711715459092,-1098.18,0.00051232,120]
[320927301,1711715459101,-744.47,0.00051232,120]
[320927302,1711715459110,-532.08,0.00051232,120]
[320927303,1711715459120,-815.77,0.00051232,120]
[320927304,1711715459130,-1398.69,0.00051232,120]
[320927305,1711715459140,-500.0,0.00051232,120]
[320927306,1711715459149,-500.0,0.00051232,120]
[320927307,1711715459158,-1134.32,0.00051232,120]
[320927308,1711715459168,-500.0,0.00051232,120]
[320927309,1711715459177,-2306.29,0.00051232,120]
[320927310,1711715459187,-500.0,0.00051232,120]
[320927311,1711715459197,-500.0,0.00051232,120]
[320927312,1711715459208,-906.41,0.00051232,120]
[320927313,1711715459219,-2037.34,0.00051232,120]
[320927314,1711715459229,-897.77,0.00051232,120]
[320927315,1711715459239,-831.59,0.00051232,120]
[320927316,1711715459250,-420.13610236,0.00051232,120]
[320927317,1711715459260,-837.52,0.00051232,120]
[320927318,1711715459271,-1445.92,0.00051232,120]
[320927319,1711715459281,-865.91,0.00051232,120]
[320927320,1711715459291,-500.0,0.00051232,120]
[320927321,1711715459301,-4401.0,0.00051232,120]
[320927322,1711715459312,-618.06,0.00051232,120]
[320927323,1711715459329,-11946.25,0.00051232,120]
[320927324,1711715459340,-553.68,0.00051232,120]
[320927325,1711715459355,-500.0,0.00051232,120]
[320927326,1711715459365,-536.07,0.00051232,120]
[320927327,1711715459375,-151.0,0.00051232,120]
[320927328,1711715459385,-749.63,0.00051232,120]
[320927329,1711715459394,-307.60720754,0.00051232,120]
[320927330,1711715459403,-970.01,0.00051232,120]
[320927331,1711715459414,-500.0,0.00051232,120]
[320927332,1711715459425,-500.0,0.00051232,120]
[320927333,1711715459435,-989.16,0.00051232,120]
[320927334,1711715459446,-1295.72,0.00051232,120]
[320927335,1711715459456,-1210.99,0.00051232,120]
[320927336,1711715459468,-1766.07,0.00051232,120]
[320927337,1711715459477,-500.0,0.00051232,120]
[320927338,1711715459486,-803.36,0.00051232,120]
[320927339,1711715459495,-500.0,0.00051232,120]
[320927340,1711715459506,-500.0,0.00051232,120]
[320927341,1711715459518,-607.41,0.00051232,120]
[320927342,1711715459528,-1040.75,0.00051232,120]
[320927343,1711715459538,-500.0,0.00051232,120]
[320927344,1711715459549,-591.93,0.00051232,120]
[320927345,1711715459559,-500.0,0.00051232,120]
[320927346,1711715459570,-500.0,0.00051232,120]
[320927347,1711715459579,-974.57,0.00051232,120]
[320927348,1711715459589,-500.0,0.00051232,120]
[320927349,1711715459598,-937.75,0.00051232,120]
[320927350,1711715459608,-7631.65,0.00051232,120]
[320927351,1711715459619,-500.0,0.00051232,120]
[320927352,1711715459630,-500.0,0.00051232,120]
[320927353,1711715459640,-547.15,0.00051232,120]
[320927354,1711715459650,-849.68,0.00051232,120]
[320927355,1711715459660,-1598.48,0.00051232,120]
[320927356,1711715459671,-530.07,0.00051232,120]
[320927357,1711715459681,-544.49,0.00051232,120]
[320927358,1711715459691,-500.0,0.00051232,120]
[320927359,1711715459700,-1844.98,0.00051232,120]
[320927360,1711715459711,-521.32,0.00051232,120]
[320927361,1711715459722,-600.49,0.00051232,120]
[320927362,1711715459732,-725.02,0.00051232,120]
[320927363,1711715459742,-997.33,0.00051232,120]
[320927364,1711715459751,-212.42836463,0.00051232,120]
[320927365,1711715459762,-532.33,0.00051232,120]
[320927366,1711715459772,-2494.86,0.00051232,120]
[320927367,1711715459782,-500.0,0.00051232,120]
[320927368,1711715459792,-635.78,0.00051232,120]
[320927369,1711715459802,-500.0,0.00051232,120]
[320927370,1711715459812,-500.0,0.00051232,120]
[320927371,1711715459822,-854.79,0.00051232,21]
[320927372,1711715459833,-986.55,0.00051232,120]
[320927373,1711715459843,-2139.57,0.00051232,120]
[320927374,1711715459853,-500.0,0.00051232,120]
[320927375,1711715459862,-947.88,0.00051232,120]
[320927376,1711715459872,-922.26,0.00051232,120]
[320927377,1711715459882,-809.13,0.00051232,120]
[320927378,1711715459892,-555.49,0.00051232,120]
[320927379,1711715459901,-500.0,0.00051232,120]
[320927380,1711715459911,-1496.84,0.00051232,120]
[320927381,1711715459921,-1713.03,0.00051232,120]
[320927382,1711715459930,-714.32,0.00051232,120]
[320927383,1711715460097,-652.78,0.00051232,120]
[320927384,1711715460107,-525.31,0.00051232,120]
[320927385,1711715460118,-599.43,0.00051232,120]
[320927386,1711715460128,-500.0,0.00051232,120]
[320927387,1711715460140,-513.23,0.00051232,120]
[320927388,1711715460150,-500.0,0.00051232,120]
[320927389,1711715460161,-500.0,0.00051232,120]
[320927390,1711715460170,-1171.13,0.00051232,120]
[320927391,1711715460181,-500.0,0.00051232,120]
[320927392,1711715460190,-500.0,0.00051232,120]
[320927393,1711715460201,-500.0,0.00051232,120]
[320927394,1711715460213,-500.0,0.00051232,120]
[320927395,1711715460223,-500.0,0.00051232,120]
[320927396,1711715460232,-594.44,0.00051232,120]
[320927397,1711715460242,-500.0,0.00051232,120]
[320927398,1711715460251,-2019.49,0.00051232,120]
[320927399,1711715460260,-500.0,0.00051232,120]
[320927400,1711715460270,-525.7,0.00051232,120]
[320927401,1711715460279,-556.54,0.00051232,120]
[320927402,1711715460290,-500.0,0.00051232,120]
[320927403,1711715460300,-699.71,0.00051232,120]
[320927404,1711715460309,-500.0,0.00051232,120]
[320927405,1711715460319,-739.52,0.00051232,120]
[320927406,1711715460328,-917.3,0.00051232,120]
[320927407,1711715460338,-1111.26,0.00051232,120]
[320927408,1711715460348,-151.0,0.00051232,120]
[320927409,1711715460358,-500.0,0.00051232,120]
[320927410,1711715460368,-150.0,0.00051269,7]
[320927411,1711715460378,-150.0,0.00051311,7]
[320927412,1711715460387,-157.032921,0.00051348,112]
[320927413,1711715460397,-163.24010354,0.00051366,60]
[320927414,1711715460406,-150.0,0.00051407,7]
[320927415,1711715460416,-151.69724403,0.00051427,50]
[320927416,1711715460425,-161.03292,0.00051448,108]
[320927417,1711715460435,-150.0,0.00051472,7]
[320927418,1711715460445,-152.65,0.000515,7]
[320927419,1711715460455,-152.65,0.000515,7]
[320927420,1711715460469,-152.65,0.000515,7]
[320927421,1711715460478,-152.65,0.000515,7]
[320927422,1711715460486,-152.65,0.000515,7]
[320927423,1711715460495,-152.65,0.000515,7]
[320927424,1711715460504,-152.65,0.000515,7]
[320927425,1711715460514,-152.65,0.000515,7]
[320927426,1711715460523,-3455.57,0.000515,7]
[320927427,1711715460532,-3455.57,0.000515,7]
[320927428,1711715460542,-3455.57,0.000515,7]
[320927429,1711715460551,-3455.57,0.000515,7]
[320927430,1711715460561,-3455.57,0.000515,7]
[320927431,1711715460571,-3455.57,0.000515,7]
[320927432,1711715460581,-3455.57,0.000515,7]
[320927433,1711715460591,-3455.57,0.000515,7]
[320927434,1711715460601,-3455.57,0.000515,7]
[320927435,1711715460610,-3455.57,0.000515,7]
[320927436,1711715460620,-3455.57,0.000515,7]
[320927437,1711715460629,-3455.57,0.000515,7]
[320927438,1711715460639,-3455.57,0.000515,7]
[320927439,1711715460649,-3455.57,0.000515,7]
[320927440,1711715460658,-3455.57,0.000515,7]
[320927441,1711715460668,-3455.57,0.000515,7]
[320927442,1711715460678,-3455.57,0.000515,7]
[320927443,1711715460688,-3455.57,0.000515,7]
[320927444,1711715460698,-3455.57,0.000515,7]
[320927445,1711715460708,-3455.57,0.000515,7]
[320927446,1711715460723,-151.0,0.000515,120]
[320927447,1711715460732,-500.0,0.00051506,2]
[320927448,1711715460742,-500.0,0.00051506,120]
[320927449,1711715460751,-1672.16,0.00051506,120]
[320927450,1711715460761,-500.0,0.00051506,120]
[320927451,1711715460771,-740.46,0.00051506,120]
[320927452,1711715460780,-500.0,0.00051506,120]
[320927453,1711715460790,-522.88,0.00051506,120]
[320927454,1711715460799,-500.0,0.00051506,120]
[320927455,1711715460808,-500.0,0.00051506,120]
[320927456,1711715460817,-500.0,0.00051506,120]
[320927457,1711715460827,-500.0,0.00051506,120]
[320927458,1711715460836,-489.9707647,0.00051506,120]
[320927459,1711715460845,-500.0,0.00051506,120]
[320927460,1711715460855,-500.0,0.00051506,120]
[320927461,1711715460865,-500.0,0.00051506,120]
[320927462,1711715460875,-500.0,0.00051506,120]
[320927463,1711715460885,-150.0,0.00051506,120]
[320927464,1711715460894,-500.0,0.00051506,120]
[320927465,1711715460903,-500.0,0.00051506,120]
[320927466,1711715460912,-500.0,0.00051506,120]
[320927467,1711715460923,-500.0,0.00051506,120]
[320927468,1711715460932,-500.0,0.00051506,120]
[320927469,1711715460941,-500.0,0.00051506,120]
[320927470,1711715460951,-615.0346533,0.00051506,120]
[320927471,1711715460964,-525.02,0.00051506,120]